Cogmind - Beta 11.1 @@@ ROGUE MODE // 2022.04.29 @ 12:47:08 Player: ktur Result: Self-destructed Performance ------------- Evolutions (1) 500 Regions Visited (6) 1200 Robots Destroyed (26) 130 Value Destroyed (815) 815 Prototype IDs (23) 460 Alien Tech Used (0) 0 Bonus (494) 494 TOTAL SCORE: 3599 Bonus ------- Follower Combat Kills 242 Aligned with FarCom 300 Friendly Fire -48 Cogmind --------- Core Integrity 270/400 Matter 126/300 Energy 99/100 System Corruption 1% Temperature Cool (0) Movement Treading (160) Location -8/Mines Parts ------- > --- POWER (1) -------- (None) > --- PROPULSION (3) --- Light Treads Light Treads Light Treads > --- UTILITY (3) ------ High-capacity Storage Unit Improved Targeting Computer > --- WEAPON (2) ------- Rocket Launcher > --- INVENTORY (20) --- Light Ion Engine Light Nuclear Core Light Nuclear Core Light Nuclear Core Light Treads Improved Treads Hover Unit Hover Unit Large Storage Unit Light Armor Plating Datajack Hammer Peak State ------------ > --- POWER ------------ Improved Ion Engine > --- PROPULSION ------- Light Treads Light Treads > --- UTILITY ---------- High-capacity Storage Unit Improved Targeting Computer Light Armor Plating > --- WEAPON ----------- Heavy Laser Heavy Assault Rifle > --- INVENTORY -------- Light Ion Engine Light Nuclear Core Light Nuclear Core Light Nuclear Core Light Treads Light Treads Light Treads Improved Treads Hover Unit Hover Unit Large Storage Unit Light Armor Plating Rocket Launcher Datajack Hammer [Rating: 16] Favorites ----------- Power Improved Ion Engine Engine Improved Ion Engine Propulsion Light Treads Treads Light Treads Utility High-capacity Storage Unit Device Improved Heat Sink Storage High-capacity Storage Unit Processor Improved Targeting Computer Protection Light Armor Plating Weapon Assault Rifle Energy Gun Medium Laser Ballistic Gun Assault Rifle Launcher Rocket Launcher Build | -11 -10 -10 -9 -9 -9 -8 ------- Run | Scr Mat Min Mat Min Exi Min Slots Evolved 2 | . . . 2 . . . Power . | . . . . . . . Propulsion 1 | . . . 1 . . . Utility 1 | . . . 1 . . . Weapon . | . . . . . . . Parts Attached 33 | 6 6 6 4 1 . 10 Power 4 | 1 1 1 . . . 1 Engine 4 | 1 1 1 . . . 1 Core . | . . . . . . . Reactor . | . . . . . . . Propulsion 9 | 2 . 2 1 1 . 3 Treads 9 | 2 . 2 1 1 . 3 Leg . | . . . . . . . Wheel . | . . . . . . . Hover . | . . . . . . . Flight . | . . . . . . . Utility 10 | 1 4 1 3 . . 1 Device 1 | . 1 . . . . . Storage 5 | 1 3 . 1 . . . Processor 2 | . . . 2 . . . Hackware . | . . . . . . . Protection 2 | . . 1 . . . 1 Artifact . | . . . . . . . Weapon 10 | 2 1 2 . . . 5 Energy Gun 2 | 1 . . . . . 1 Energy Cannon . | . . . . . . . Ballistic Gun 6 | 1 1 2 . . . 2 Ballistic Cannon . | . . . . . . . Launcher 2 | . . . . . . 2 Special Weapon . | . . . . . . . Impact Weapon . | . . . . . . . Slashing Weapon . | . . . . . . . Piercing Weapon . | . . . . . . . Special Melee Weapon . | . . . . . . . Unidentified Prototypes . | . . . . . . . Parts Lost 12 | . 2 . . . . 10 Power 2 | . 1 . . . . 1 Propulsion 3 | . . . . . . 3 Utility 2 | . . . . . . 2 Weapon 5 | . 1 . . . . 4 Highest Loss Streak 9 | . 1 . . . . 9 To Critical Strikes . | . . . . . . . Average Slot Usage (%) 92 | . 93 100 100 100 100 71 Engine 10 | . 13 14 11 11 11 2 Treads 30 | . 28 28 33 33 33 32 Device 3 | . 8 9 . . . . Storage 12 | . 14 14 11 11 11 11 Processor 6 | . . . 11 11 11 11 Protection 5 | . . 4 11 11 11 1 Ballistic Gun 19 | . 22 28 22 22 22 3 Launcher 2 | . . . . . . 9 Naked Turns . | . . . . . . . Heaviest Build 55 | 11 46 35 55 55 55 55 Greatest Support 60 | 40 40 40 60 60 60 60 Greatest Overweight (x) 1 | . 1 . . . . 1 Average Overweight (x) . | . . . . . . . Largest Inventory Capacity 20 | 8 20 15 20 20 20 20 Average Capacity 17 | 7 12 15 19 20 20 20 Most Carried 18 | 6 15 15 15 17 17 18 Average Carried 13 | 3 10 14 14 16 17 12 Final Capacity 20 | 8 15 15 20 20 20 20 Final Carried 17 | 6 15 15 15 17 17 12 Class Distribution -------------------- 51% | Mutant 48% | Scavenger-Mutant Dominant Class ---------------- Mutant | -10/Materials Mutant | -10/Mines Scavenger-Mutant | -9/Materials Scavenger-Mutant | -9/Mines Scavenger-Mutant | -9/Exiles Mutant | -8/Mines Resources | -11 -10 -10 -9 -9 -9 -8 ----------- Run | Scr Mat Min Mat Min Exi Min Matter Collected 790 | 214 147 118 74 60 . 177 Remotely . | . . . . . . . Salvage Created 886 | . 276 117 16 142 . 335 Parts 59 | . 17 12 . 10 . 20 Haulers Intercepted 2 | . 2 . . . . . Recyclers Shooed 2 | . 1 . 1 . . . Parts Field Recycled . | . . . . . . . Retrieved Matter . | . . . . . . . Parts Self-Destructed . | . . . . . . . Prevented . | . . . . . . . Kills | -11 -10 -10 -9 -9 -9 -8 ------- Run | Scr Mat Min Mat Min Exi Min Combat Hostiles Destroyed 21 | . 4 3 . 3 . 11 Guns 13 | . 4 3 . 3 . 3 AOE 8 | . . . . . . 8 Classes Destroyed 7 | . 3 2 . 1 . 1 Worker 1 | . . . . . . 1 Hauler 2 | . 2 . . . . . Operator 2 | . 1 . 1 . . . Swarmer 4 | . . 1 . . . 3 Grunt 14 | . 4 . . 2 . 8 Brawler 1 | . . . . 1 . . Sentry 2 | . . 2 . . . . Best Kill Streak 3 | . 2 2 1 2 . 3 Combat Bots Only 3 | . 2 2 . 2 . 3 Max Kills in Single Turn 2 | . 1 1 1 1 . 2 Gunslinging . | . . . . . . . Exploded 2 | . . . . . . 2 Melee . | . . . . . . . Uniques/NPCs Destroyed . | . . . . . . . Combat | -11 -10 -10 -9 -9 -9 -8 -------- Run | Scr Mat Min Mat Min Exi Min Damage Taken 1848 | . 435 198 . 53 114 1048 Core 271 | . 99 42 . 17 21 92 Absorbed by Shields . | . . . . . . . Core Remaining (%) 71 | 100 . 43 . . . . Volleys Fired 102 | . 36 13 7 7 2 37 Largest 2 | . 2 2 2 2 2 2 Hottest 92 | . 70 43 43 43 43 92 Shots Fired 181 | . 68 26 14 14 4 55 Gun 167 | . 68 26 14 14 4 41 Cannon . | . . . . . . . Launcher 14 | . . . . . . 14 Special . | . . . . . . . Kinetic 148 | . 55 26 14 14 4 35 Thermal 19 | . 13 . . . . 6 Explosive 14 | . . . . . . 14 Electromagnetic . | . . . . . . . Robot Hit Streak 15 | . 13 15 7 9 . 9 Robot Miss Streak 4 | . 4 2 4 1 . 2 Penetration Max . | . . . . . . . Secondary Targets 1 | . . . . 1 . . Max Gunslinging Chain 1 | . . . . 1 . . Shots Hit Robots 127 | . 44 21 9 12 . 41 Core Hits 61 | 1 20 6 4 5 . 25 Critical Kills . | . . . . . . . Critical Parts Destroyed . | . . . . . . . Critical Strikes . | . . . . . . . Melee Attacks . | . . . . . . . Impact . | . . . . . . . Slashing . | . . . . . . . Piercing . | . . . . . . . Sneak Attacks . | . . . . . . . Combat Hostiles . | . . . . . . . Follow-up Attacks . | . . . . . . . Damage Inflicted 2266 | 1 383 248 132 168 . 1334 Guns 1376 | . 383 248 132 168 . 445 Cannons . | . . . . . . . Explosions 889 | . . . . . . 889 Melee . | . . . . . . . Ramming 1 | 1 . . . . . . Kinetic 1201 | . 282 248 132 168 . 371 Thermal 175 | . 101 . . . . 74 Explosive 889 | . . . . . . 889 Electromagnetic . | . . . . . . . Impact . | . . . . . . . Slashing . | . . . . . . . Piercing . | . . . . . . . Highest Corruption 1 | . . . 1 1 1 1 Average Corruption 1 | . . . 1 1 1 1 Corruption Purged . | . . . . . . . Corruption Blocked . | . . . . . . . Effects 22 | . . . . 8 4 10 Message Errors 6 | . . . . 3 . 3 Matter Fused 4 | . . . . . 1 3 Heat Flow Errors 2 | . . . . 1 . 1 Energy Discharges 4 | . . . . 2 1 1 Parts Rejected 1 | . . . . . . 1 Data Loss (minor) 5 | . . . . 2 2 1 Overload Shots . | . . . . . . . Overflow Damage . | . . . . . . . Projectiles . | . . . . . . . Explosions . | . . . . . . . Melee . | . . . . . . . Knockbacks . | . . . . . . . Impact . | . . . . . . . Kinetic . | . . . . . . . Secondary . | . . . . . . . Self-Inflicted Damage 79 | . . . . . . 79 Shots 4 | . . . . . . 4 Rammed 1 | 1 . . . . . . Targets Rammed 1 | 1 . . . . . . Kicked . | . . . . . . . Crushed . | . . . . . . . Highest Temperature 297 | . 235 . . 236 . 297 Average Temperature 91 | . 101 . . 101 . 82 Received Heat Transfer 882 | . 258 57 . 27 . 540 Effects 1 | . . . . . . 1 Interference 1 | . . . . . . 1 Siege Activations . | . . . . . . . Robots Corrupted . | . . . . . . . Combat Hostiles . | . . . . . . . Parts Fried . | . . . . . . . Impact Corruptions . | . . . . . . . Robots Melted . | . . . . . . . Combat Hostiles . | . . . . . . . Parts Melted . | . . . . . . . Heat Transferred 444 | . 296 . . . . 148 Parts Sabotaged . | . . . . . . . Parts Stolen . | . . . . . . . Parts Stripped . | . . . . . . . Power Chain Reactions . | . . . . . . . Missiles Intercepted . | . . . . . . . Alert | -11 -10 -10 -9 -9 -9 -8 ------- Run | Scr Mat Min Mat Min Exi Min Peak Influence 192 | . 82 141 192 108 . 188 Initial 74 | . . 24 54 74 . . Average 52 | . 28 36 149 67 . 53 Maximum Alert Level . | . . . . . . . Low Security (%) 100 | 100 100 100 100 100 . 100 Level 1 . | . . . . . . . Level 2 . | . . . . . . . Level 3 . | . . . . . . . Level 4 . | . . . . . . . Level 5 . | . . . . . . . High Security . | . . . . . . . Max Security . | . . . . . . . Squads Dispatched 1 | . . . 1 . . . Investigation . | . . . . . . . Extermination . | . . . . . . . Reinforcement 1 | . . . 1 . . . Assault . | . . . . . . . Garrison . | . . . . . . . Intercept . | . . . . . . . Searches Triggered . | . . . . . . . Construction Impeded . | . . . . . . . Haulers Reinforced . | . . . . . . . Active Scanning Responses . | . . . . . . . Cargo Convoy Interrupts . | . . . . . . . Stealth | -11 -10 -10 -9 -9 -9 -8 --------- Run | Scr Mat Min Mat Min Exi Min Distress Signals 3 | . 2 . 1 . . . Communications Jammed . | . . . . . . . Distress Signals . | . . . . . . . Times Spotted 51 | . 11 10 6 4 7 13 Peak Tracking Total 10 | . 4 3 2 2 10 3 Tactical Retreats 2 | . . 1 . . . 1 Traps | -11 -10 -10 -9 -9 -9 -8 ------- Run | Scr Mat Min Mat Min Exi Min Traps Triggered 1 | . . . 1 . . . Indirectly . | . . . . . . . Trap Hack Attempts . | . . . . . . . Triggered . | . . . . . . . Disarmed . | . . . . . . . Reprogrammed . | . . . . . . . Reused . | . . . . . . . Traps Extracted . | . . . . . . . Installed . | . . . . . . . Triggered . | . . . . . . . Machines | -11 -10 -10 -9 -9 -9 -8 ---------- Run | Scr Mat Min Mat Min Exi Min Machines Disabled 1 | . . . . . 1 . Max in Single Turn 1 | . . . . . 1 . Machines Sabotaged . | . . . . . . . Garrisons Compromised . | . . . . . . . Overloaded Fab Kills . | . . . . . . . Hacking | -11 -10 -10 -9 -9 -9 -8 --------- Run | Scr Mat Min Mat Min Exi Min Machines Accessed 9 | . 4 . 3 . 2 . Terminals 6 | . 4 . 2 . . . Fabricators . | . . . . . . . Repair Stations . | . . . . . . . Recycling Units 1 | . . . 1 . . . Scanalyzers . | . . . . . . . Garrison Access . | . . . . . . . Total Hacks 29 | . 14 . 13 . 2 . Successful 18 | . 10 . 6 . 2 . Failed 11 | . 4 . 7 . . . Catastrophic . | . . . . . . . Database Lockouts . | . . . . . . . Manual 20 | . 12 . 7 . 1 . Terminals 23 | . 14 . 9 . . . Fabricators . | . . . . . . . Repair Stations . | . . . . . . . Recycling Units 4 | . . . 4 . . . Scanalyzers . | . . . . . . . Garrison Access . | . . . . . . . Terminal Hacks 11 | . 6 . 3 . 2 . Record 1 | . . . . . 1 . Part Schematic 3 | . 3 . . . . . Robot Analysis 3 | . 2 . 1 . . . Alert Level 1 | . . . 1 . . . Unreport Threat 1 | . 1 . . . . . Hauler Manifests 1 | . . . 1 . . . EX-Prototype ID Bank 1 | . . . . . 1 . Fabricator Hacks . | . . . . . . . Repair Station Hacks . | . . . . . . . Recycling Unit Hacks 1 | . . . 1 . . . Retrieve Components 1 | . . . 1 . . . Scanalyzer . | . . . . . . . Garrison Access Hacks . | . . . . . . . Unauthorized Hacks 6 | . 4 . 2 . . . Terminals 6 | . 4 . 2 . . . Assimilate 2 | . 2 . . . . . Botnet 1 | . 1 . . . . . Operators 3 | . 1 . 2 . . . Fabricators . | . . . . . . . Repair Stations . | . . . . . . . Recycling Units . | . . . . . . . Scanalyzers . | . . . . . . . Garrison Access . | . . . . . . . Data Cores Recovered . | . . . . . . . Used . | . . . . . . . Hacking Detections 6 | . 3 . 3 . . . Full Trace Events . | . . . . . . . Feedback Events . | . . . . . . . Feedback Blocked . | . . . . . . . Robot Schematics Acquired . | . . . . . . . Robots Built . | . . . . . . . Authchips . | . . . . . . . Time . | . . . . . . . Total Robot Build Rating . | . . . . . . . Part Schematics Acquired 3 | . 3 . . . . . Parts Built . | . . . . . . . Authchips . | . . . . . . . Time . | . . . . . . . Total Part Build Rating . | . . . . . . . Parts Repaired . | . . . . . . . Time . | . . . . . . . Parts Recycled . | . . . . . . . Recycled Matter . | . . . . . . . Retrieved Matter . | . . . . . . . Retrieved Components 9 | . . . 9 . . . Parts Scanalyzed . | . . . . . . . Part Schematics Acquired . | . . . . . . . Parts Damaged . | . . . . . . . Bothacking | -11 -10 -10 -9 -9 -9 -8 ------------ Run | Scr Mat Min Mat Min Exi Min Used RIF Installer . | . . . . . . . Robots Hacked . | . . . . . . . Non-combat . | . . . . . . . Combat . | . . . . . . . Robot Hacks Applied . | . . . . . . . Relay Couplers Released . | . . . . . . . Fabnet Peak Effective % . | . . . . . . . Robots Rewired . | . . . . . . . Allies Hacked . | . . . . . . . Hacks Repelled . | . . . . . . . Allies | -11 -10 -10 -9 -9 -9 -8 -------- Run | Scr Mat Min Mat Min Exi Min Total Allies 5 | . 1 4 . . . . Largest Group 3 | . 1 3 2 2 . . Highest-Rated Group 40 | . 10 40 32 32 . . Highest-Rated Ally 31 | . 10 31 16 16 . . Total Orders . | . . . . . . . Ally Attacks 34 | . . 17 9 8 . . Total Damage 408 | . . 207 109 92 . . Kills 11 | . . 6 4 1 . . Allies Corrupted . | . . . . . . . Allies Melted . | . . . . . . . Intel | -11 -10 -10 -9 -9 -9 -8 ------- Run | Scr Mat Min Mat Min Exi Min Robot Analysis Total 3 | . 2 . 1 . . . Derelict Logs Recovered 2 | . . 1 . 1 . . Drone Launches . | . . . . . . . Drone Recoveries . | . . . . . . . Exploration | -11 -10 -10 -9 -9 -9 -8 ------------- Run | Scr Mat Min Mat Min Exi Min Turns Passed 4443 | 91 758 1061 275 827 438 993 Spaces Moved 2533 | 49 384 626 151 498 271 554 Core 3 | 3 . . . . . . Treads 2530 | 46 384 626 151 498 271 554 Legs . | . . . . . . . Wheels . | . . . . . . . Hover . | . . . . . . . Flight . | . . . . . . . Fastest Speed 50 | 50 160 160 160 160 160 160 Average Speed 160 | 153 165 160 160 160 160 160 Slowest Speed 240 | 160 240 160 160 160 160 240 Overloaded Moves . | . . . . . . . Propulsion Burnouts . | . . . . . . . Robots Hopped . | . . . . . . . Cave-ins Triggered . | . . . . . . . Exploration Rate (%) 60 | 5 47 99 15 99 62 95 Regions Visited 6 Branch Regions 4 Pre-discovered Areas 1 | . . . . . 1 . Known Exits Taken . | . . . . . . . Unknown Exits Taken 6 | 1 1 1 1 1 1 . Scrap Searched 3 | . . 1 . 1 . 1 Spaces Dug . | . . . . . . . Terrain Destroyed 97 | . . . . . . 97 Melee . | . . . . . . . Projectile . | . . . . . . . AOE 97 | . . . . . . 97 Terrain Rammed . | . . . . . . . Walls Destroyed . | . . . . . . . Machines Disabled . | . . . . . . . Actions | -11 -10 -10 -9 -9 -9 -8 --------- Run | Scr Mat Min Mat Min Exi Min Total 2738 | 61 452 666 171 514 272 602 Wait 25 | . 5 7 7 6 . . Move 2527 | 48 383 625 150 497 270 554 Hop . | . . . . . . . Pick Up 31 | 6 15 5 2 2 . 1 Fast Attach 13 | 6 3 2 . . . 2 Attach 10 | . 1 . 3 . . 6 Detach 1 | . . . 1 . . . Swap 10 | . 2 4 1 1 . 2 Drop 18 | . 7 10 . 1 . . Fire 102 | . 36 13 7 7 2 37 Melee . | . . . . . . . Ram . | . . . . . . . Kick . | . . . . . . . Crush 1 | 1 . . . . . . Escape Stasis . | . . . . . . . Rewire . | . . . . . . . Trap . | . . . . . . . Miscellaneous . | . . . . . . . Route ------- -11/Scrapyard -10/Materials (discovered 2 exits: *Mat / [*Min]) -10/Mines (discovered 2 exits: *Mat x2) -9/Materials -9/Mines (discovered 4 exits: [*Mat x2] / *Exi / [*Zio]) -9/Exiles -8/Mines (discovered 2 exits: [*Mat x2]) History --------- Turn | Location | Event 2 | -11/Scrapyard | Met Revision 17 8 | -11/Scrapyard | Discovered new exit (range 16) 92 | -11/Scrapyard | Entered Materials 173 | -10/Materials | Discovered new exit (range 7) 316 | -10/Materials | Build established: Mutant 427 | -10/Materials | Discovered new exit (range 11) 850 | -10/Materials | Entered Mines 857 | -10/Mines | Learned Materials emergency access door positions 911 | -10/Mines | Received a Mining Laser from a helpful Derelict 1307 | -10/Mines | Received a Rocket Launcher from a helpful Derelict 1513 | -10/Mines | Discovered new exit (range 8) 1550 | -10/Mines | Core integrity fell below 50% 1710 | -10/Mines | Discovered new exit (range 7) 1734 | -10/Mines | A weapon hastily lodged in a ceiling crevice suddenly fell to the ground 1786 | -10/Mines | Assisted by bots powering up and referring to "LRC-V3" 1841 | -10/Mines | Build established: Scavenger-Mutant 1911 | -10/Mines | Entered Materials 1911 | -9/Materials | Accompanied by 2 allies 1911 | -9/Materials | Evolved 2 slots: Propulsion x1, Utility x1 2123 | -9/Materials | Discovered new exit (range 16) 2186 | -9/Materials | Entered Mines 2186 | -9/Mines | Accompanied by 2 allies 2376 | -9/Mines | Learned 2 Materials zone layouts 2392 | -9/Mines | Discovered new exit (range 6) 2491 | -9/Mines | A Derelict revealed a hidden shortcut to a safe place 2805 | -9/Mines | Found a hidden stash of uninstalled traps 2809 | -9/Mines | Discovered new exit (range 12) 3006 | -9/Mines | Deemed a non-threat by the Exiles lab entrance 3006 | -9/Mines | Discovered new exit (range 5) 3013 | -9/Mines | Entered Exiles 3052 | -9/Exiles | Met 8R-AWN 3081 | -9/Exiles | Met EX-HEX 3149 | -9/Exiles | Met EX-DEC 3157 | -9/Exiles | Learned location of Zion (-7) 3191 | -9/Exiles | Met EX-BIN 3210 | -9/Exiles | Aligned with FarCom system 3212 | -9/Exiles | Given EX-Vault access code 3249 | -9/Exiles | Opened EX-Vault 3285 | -9/Exiles | Warned to stay clear of 0b10 Research branches 3411 | -9/Exiles | Attacked by the Exiles 3439 | -9/Exiles | Discovered new exit (range 10) 3451 | -9/Exiles | Entered Mines 3669 | -8/Mines | Lost 9 parts (3n2u4w) 3820 | -8/Mines | Discovered new exit (range 8) 3986 | -8/Mines | Build established: Mutant 4435 | -8/Mines | Discovered new exit (range 8) 4444 | -8/Mines | Self-destructed Last Messages --------------- 03766_ The unstable cave ceiling collapses. 03767_ K-01 Serf collects debris. 03768_ U-05 Engineer builds a Wall. 03772_ 4YDKEVA20F,:GJ8PXBPPM1V5P 03773_ U-05 Engineer builds a Wall. 03778_ U-05 Engineer lays Concrete. 03820_ EXIT=FOUND 03843_ System corrupted: Energy discharge (-25). 03914_ U-05 Engineer builds a Wall. 03956_ System corrupted: Matter fused (-6). 04065_ K-01 Serf collects debris. 04147_ System corrupted: Matter fused (-5). 04215_ T-07 Excavator is excavating. 04252_ MMH#AHZ GZ# L/A=U#SZ6:5YG 04327_ System corrupted: Heat flow error (+259). 04329_ Overheating: System interference. 04329_ Rocket Launcher temporarily disabled. 04362_ K-01 Serf collects debris. 04421_ S-10 Pest destroyed. 04435_ EXIT=FOUND Map ----- +----------------------------------------------------+ | #######??# ######??????????# #?? | | #????# #?????????## ##?? | | [#### ###### #### #?????????# ##??? | | ##### #?# #?????????# ##???? | | ##??######## #?# #??####???## ##???? | | ???????????# #?# #### ##???# ##??? | | ??????????## #?# ##?## #??? | | ?########## ######## ### #??? | | ## ###???## #??? | | # #????## #??? | | # ## #????## ## """ ##?? | | ## ####### #????## #### """ #?? | | ?# #?????## ##??### ###??# """ ##? | | ?# ##?????# ##??## ##????# #? | | ?# ##???? ##???# #?????## * #? | | ?## ##??? #????# #??????### %!## | | ??## ##?# #????# #???????# # # | | ???## ### ????## #??????### # | | ????## ### ????## ##?????## %! # | | ?????# #?### ?????#####??????# =% ## | | ????## #????# ???????????????# [ # | | ##?## #?????# ????#####?????# ## | | ### ##?????##?????# # ####??# ##? | | ##????????#### ##?# #?? | | # ##??????## #?# #?? | | ####### ######## @ [ #?## #?? | | ??????## = #??### ##?? | | ???????## # < #????######??? | | ????????############## # #????????????? | | ?????????????????????### # ###????????????? | | ????????????????????????######??????????????? | | ????????????????????????????????????????????? | | ????????????????????????????????????????????? | | ????????????????????????????????????????????? | | | | | | | | | | | | | | | | | | | | | | | | | | | | | | | | | +----------------------------------------------------+ Best States ------------- Heat Dissipation 39 Energy Generation 12 Energy Capacity 265 Matter Stores 300 Matter Capacity 300 Sight Range 16 Terrain Scan Density 10 Armor Coverage 150 Evasion (%) 40 Targeting Accuracy 6 Recoil Reduction 3 Item Schematics ----------------- Hcp. Storage Unit | -10/Materials | Hacked Structural Scanner | -10/Materials | Hacked Signal Interpreter | -10/Materials | Hacked Robot Schematics ------------------ None Fabricated ------------ Nothing Alien Tech Used ----------------- None Achievements -------------- None Challenges ------------ None Game ------ Seed CoilRestorationShotgun Manual? 0 Play Time 00:16:50 Cumulative 368.8 hours Start 2022.04.29 @ 12:33:00 End 2022.04.29 @ 12:47:08 Sessions 1 Manual Loads 0 Difficulty Rogue Special Mode None Game No. 377 Rogue 377 Adventurer 0 Explorer 0 Win Type - Total 20 Types 12/2/3/2/0/0/0/1/0 Lore% 91 Gallery% 88 Achievement% 75 Wizard Run 0 Options --------- ASCII 0 Keyboard 0 Movement Arrows Keybinds 0 Fullscreen 1 Font 18/Smallcaps Map View 76x50 Tactical HUD 1 Map Filters NONE Filters NONE Steam 1 RUN: d9ac8727-45a0-4b92-ab75-76fc59ca0f7d